[Event "December 19 Early 2023"]
[Site "https://www.chess.com"]
[Date "2023.12.19"]
[Round "10"]
[White "Jumabayev, Rinat"]
[Black "Sadykov, Ramil"]
[Result "1-0"]
[Board "41"]
[TimeControl "180+1"]
[WhiteFideId "13702661"]
[BlackFideId "24113590"]
[WhiteElo "2561"]
[BlackElo "2245"]
[WhiteTeam "KAZ"]
[BlackTeam "FID"]
[WhiteClock "0:00:24"]
[BlackClock "0:00:00"]

1. d4 {[%clk 0:02:53]}  d5 {[%clk 0:02:59]} 2. c4 {[%clk 0:02:52]}  e6 {[%clk 0:02:59]} 3. Nc3 {[%clk 0:02:52]}  Be7 {[%clk 0:02:59]} 4. cxd5 {[%clk 0:02:51]}  exd5 {[%clk 0:03:00]} 5. Bf4 {[%clk 0:02:50]}  c6 {[%clk 0:03:00]} 6. e3 {[%clk 0:02:50]}  Nf6 {[%clk 0:02:59]} 7. h3 {[%clk 0:02:46]}  Bf5 {[%clk 0:02:52]} 8. g4 {[%clk 0:02:46]}  Be6 {[%clk 0:02:48]} 9. Nf3 {[%clk 0:02:44]}  Nbd7 {[%clk 0:02:22]} 10. Bd3 {[%clk 0:02:43]}  c5 {[%clk 0:02:11]} 11. Nb5 {[%clk 0:02:08]}  O-O {[%clk 0:01:50]} 12. Kf1 {[%clk 0:01:53]}  Qb6 {[%clk 0:01:34]} 13. dxc5 {[%clk 0:01:20]}  Nxc5 {[%clk 0:01:29]} 14. Be2 {[%clk 0:01:18]}  d4 {[%clk 0:01:08]} 15. Nfxd4 {[%clk 0:01:13]}  Bd5 {[%clk 0:01:05]} 16. Bc7 {[%clk 0:01:13]}  Qa6 {[%clk 0:00:39]} 17. Nc3 {[%clk 0:01:03]}  Bc4 {[%clk 0:00:32]} 18. b3 {[%clk 0:00:57]}  Bxe2+ {[%clk 0:00:31]} 19. Qxe2 {[%clk 0:00:58]}  Qa3 {[%clk 0:00:26]} 20. Ncb5 {[%clk 0:00:51]}  Qa6 {[%clk 0:00:20]} 21. Kg2 {[%clk 0:00:42]}  Nd5 {[%clk 0:00:17]} 22. Bh2 {[%clk 0:00:38]}  Ne4 {[%clk 0:00:14]} 23. Rac1 {[%clk 0:00:38]}  Rac8 {[%clk 0:00:13]} 24. Qf3 {[%clk 0:00:36]}  Ndc3 {[%clk 0:00:05]} 25. Nxc3 {[%clk 0:00:32]}  Nxc3 {[%clk 0:00:06]} 26. Rc2 {[%clk 0:00:32]}  Nxa2 {[%clk 0:00:04]} 27. Rxc8 {[%clk 0:00:24]}  Rxc8 {[%clk 0:00:00]} 28. Ra1 {[%clk 0:00:24]} 1-0

[Event "December 19 Early 2023"]
[Site "https://www.chess.com"]
[Date "2023.12.19"]
[Round "10"]
[White "Materia, Marco"]
[Black "Ambartsumova, Karina"]
[Result "1-0"]
[Board "42"]
[TimeControl "180+1"]
[WhiteFideId "45150451"]
[BlackFideId "4166299"]
[WhiteElo "2451"]
[BlackElo "2240"]
[WhiteTeam "FRA"]
[BlackTeam "RUS"]
[WhiteClock "0:01:33"]
[BlackClock "0:00:00"]

1. d4 {[%clk 0:03:00]}  Nf6 {[%clk 0:02:59]} 2. c4 {[%clk 0:03:00]}  e6 {[%clk 0:02:59]} 3. Nf3 {[%clk 0:03:00]}  d5 {[%clk 0:02:59]} 4. Nc3 {[%clk 0:03:00]}  Be7 {[%clk 0:02:59]} 5. Bg5 {[%clk 0:02:59]}  O-O {[%clk 0:02:58]} 6. e3 {[%clk 0:03:00]}  h6 {[%clk 0:02:58]} 7. Bxf6 {[%clk 0:02:59]}  Bxf6 {[%clk 0:02:59]} 8. cxd5 {[%clk 0:02:58]}  exd5 {[%clk 0:02:58]} 9. Bd3 {[%clk 0:02:59]}  c6 {[%clk 0:02:51]} 10. O-O {[%clk 0:02:48]}  Nd7 {[%clk 0:02:49]} 11. b4 {[%clk 0:02:45]}  a6 {[%clk 0:02:47]} 12. a4 {[%clk 0:02:45]}  Re8 {[%clk 0:02:20]} 13. b5 {[%clk 0:02:45]}  axb5 {[%clk 0:02:19]} 14. axb5 {[%clk 0:02:45]}  Rxa1 {[%clk 0:02:19]} 15. Qxa1 {[%clk 0:02:46]}  Nb6 {[%clk 0:02:12]} 16. bxc6 {[%clk 0:02:45]}  bxc6 {[%clk 0:02:13]} 17. Rb1 {[%clk 0:02:39]}  Bd7 {[%clk 0:01:59]} 18. Qa6 {[%clk 0:02:30]}  Nc8 {[%clk 0:01:56]} 19. Na4 {[%clk 0:02:29]}  Nd6 {[%clk 0:01:39]} 20. Nc5 {[%clk 0:02:26]}  Qc7 {[%clk 0:01:34]} 21. Qb6 {[%clk 0:02:18]}  Qxb6 {[%clk 0:01:06]} 22. Rxb6 {[%clk 0:02:16]}  Bf5 {[%clk 0:00:50]} 23. Rxc6 {[%clk 0:02:13]}  Bxd3 {[%clk 0:00:48]} 24. Nxd3 {[%clk 0:02:10]}  Nc4 {[%clk 0:00:43]} 25. Nf4 {[%clk 0:02:07]}  Rd8 {[%clk 0:00:35]} 26. Nxd5 {[%clk 0:02:07]}  Rxd5 {[%clk 0:00:30]} 27. Rxc4 {[%clk 0:02:08]}  g5 {[%clk 0:00:30]} 28. g4 {[%clk 0:02:07]}  Kg7 {[%clk 0:00:28]} 29. Kg2 {[%clk 0:02:08]}  Ra5 {[%clk 0:00:28]} 30. h3 {[%clk 0:02:08]}  Ra2 {[%clk 0:00:27]} 31. Rc7 {[%clk 0:02:05]}  Bd8 {[%clk 0:00:20]} 32. Rd7 {[%clk 0:02:04]}  Ba5 {[%clk 0:00:20]} 33. Ne5 {[%clk 0:02:04]}  Be1 {[%clk 0:00:17]} 34. Rxf7+ {[%clk 0:02:04]}  Kg8 {[%clk 0:00:16]} 35. Rf5 {[%clk 0:02:03]}  Kg7 {[%clk 0:00:14]} 36. Nd3 {[%clk 0:02:02]}  Bd2 {[%clk 0:00:13]} 37. Kf3 {[%clk 0:02:01]}  Ra3 {[%clk 0:00:13]} 38. Ke4 {[%clk 0:02:01]}  Ra2 {[%clk 0:00:13]} 39. Ne5 {[%clk 0:02:01]}  Be1 {[%clk 0:00:13]} 40. f3 {[%clk 0:01:58]}  Kg8 {[%clk 0:00:13]} 41. Rf6 {[%clk 0:01:58]}  Kg7 {[%clk 0:00:12]} 42. Rg6+ {[%clk 0:01:59]}  Kh7 {[%clk 0:00:13]} 43. Rb6 {[%clk 0:01:58]}  Re2 {[%clk 0:00:12]} 44. Rb7+ {[%clk 0:01:56]}  Kg8 {[%clk 0:00:12]} 45. Kf5 {[%clk 0:01:49]}  Rxe3 {[%clk 0:00:10]} 46. Kg6 {[%clk 0:01:41]}  Kf8 {[%clk 0:00:10]} 47. Kxh6 {[%clk 0:01:42]}  Bc3 {[%clk 0:00:09]} 48. Kxg5 {[%clk 0:01:39]}  Bxd4 {[%clk 0:00:09]} 49. Ng6+ {[%clk 0:01:40]}  Ke8 {[%clk 0:00:09]} 50. Nh4 {[%clk 0:01:38]}  Ra3 {[%clk 0:00:07]} 51. Nf5 {[%clk 0:01:38]}  Bc3 {[%clk 0:00:05]} 52. h4 {[%clk 0:01:37]}  Bd2+ {[%clk 0:00:06]} 53. Kg6 {[%clk 0:01:36]}  Rxf3 {[%clk 0:00:06]} 54. Re7+ {[%clk 0:01:34]}  Kd8 {[%clk 0:00:06]} 55. Re4 {[%clk 0:01:34]}  Bc3 {[%clk 0:00:00]} 56. Re3 {[%clk 0:01:33]} 1-0

[Event "December 19 Early 2023"]
[Site "https://www.chess.com"]
[Date "2023.12.19"]
[Round "10"]
[White "Burovic, Rijad"]
[Black "Haug, Havard"]
[Result "1/2-1/2"]
[Board "43"]
[TimeControl "180+1"]
[WhiteFideId "14407701"]
[BlackFideId "1547887"]
[WhiteElo "2384"]
[BlackElo "2343"]
[WhiteTeam "BIH"]
[BlackTeam "NOR"]
[WhiteClock "0:00:04"]
[BlackClock "0:00:03"]

1. e4 {[%clk 0:03:00]}  b6 {[%clk 0:03:00]} 2. d4 {[%clk 0:02:59]}  Bb7 {[%clk 0:03:00]} 3. Bd3 {[%clk 0:03:00]}  e6 {[%clk 0:03:01]} 4. Qe2 {[%clk 0:02:56]}  Nf6 {[%clk 0:02:59]} 5. Nd2 {[%clk 0:02:57]}  c5 {[%clk 0:02:55]} 6. d5 {[%clk 0:02:50]}  Be7 {[%clk 0:02:51]} 7. c4 {[%clk 0:02:46]}  d6 {[%clk 0:02:51]} 8. Ngf3 {[%clk 0:02:41]}  e5 {[%clk 0:02:47]} 9. O-O {[%clk 0:02:41]}  O-O {[%clk 0:02:47]} 10. a3 {[%clk 0:02:40]}  Na6 {[%clk 0:02:40]} 11. Rb1 {[%clk 0:02:38]}  Nc7 {[%clk 0:02:39]} 12. b4 {[%clk 0:02:39]}  cxb4 {[%clk 0:02:37]} 13. axb4 {[%clk 0:02:39]}  Qc8 {[%clk 0:02:29]} 14. Nb3 {[%clk 0:02:36]}  a5 {[%clk 0:02:28]} 15. Be3 {[%clk 0:02:32]}  axb4 {[%clk 0:02:21]} 16. Bxb6 {[%clk 0:02:31]}  Na6 {[%clk 0:02:22]} 17. Rfc1 {[%clk 0:01:57]}  Nd7 {[%clk 0:02:21]} 18. Be3 {[%clk 0:01:53]}  Ndc5 {[%clk 0:02:18]} 19. Nxc5 {[%clk 0:01:52]}  Nxc5 {[%clk 0:02:19]} 20. Rxb4 {[%clk 0:01:52]}  Ba6 {[%clk 0:02:19]} 21. h3 {[%clk 0:01:26]}  Qc7 {[%clk 0:02:16]} 22. Rcb1 {[%clk 0:01:22]}  Rfc8 {[%clk 0:02:05]} 23. Nd2 {[%clk 0:01:23]}  Bd8 {[%clk 0:01:55]} 24. Kh2 {[%clk 0:01:15]}  Qd7 {[%clk 0:01:43]} 25. Nb3 {[%clk 0:01:01]}  Nxd3 {[%clk 0:01:28]} 26. Qxd3 {[%clk 0:01:02]}  g6 {[%clk 0:01:14]} 27. Qc3 {[%clk 0:00:57]}  Be7 {[%clk 0:01:10]} 28. Na5 {[%clk 0:00:55]}  f5 {[%clk 0:01:08]} 29. exf5 {[%clk 0:00:45]}  Qxf5 {[%clk 0:01:05]} 30. Nc6 {[%clk 0:00:44]}  Bf6 {[%clk 0:01:01]} 31. Ra1 {[%clk 0:00:37]}  h5 {[%clk 0:00:34]} 32. Qb3 {[%clk 0:00:31]}  e4 {[%clk 0:00:30]} 33. Bd4 {[%clk 0:00:21]}  Bxd4 {[%clk 0:00:30]} 34. Ne7+ {[%clk 0:00:21]}  Kh8 {[%clk 0:00:25]} 35. Nxf5 {[%clk 0:00:22]}  Bxa1 {[%clk 0:00:26]} 36. Ne7 {[%clk 0:00:18]}  Re8 {[%clk 0:00:18]} 37. Nxg6+ {[%clk 0:00:18]}  Kg7 {[%clk 0:00:19]} 38. Nh4 {[%clk 0:00:18]}  Be5+ {[%clk 0:00:18]} 39. g3 {[%clk 0:00:18]}  Rf8 {[%clk 0:00:19]} 40. Qe3 {[%clk 0:00:18]}  Rf6 {[%clk 0:00:17]} 41. Ra4 {[%clk 0:00:13]}  Bb7 {[%clk 0:00:09]} 42. Rxa8 {[%clk 0:00:13]}  Bxa8 {[%clk 0:00:10]} 43. Qg5+ {[%clk 0:00:13]}  Kf7 {[%clk 0:00:04]} 44. Qxh5+ {[%clk 0:00:13]}  Ke7 {[%clk 0:00:04]} 45. Kg2 {[%clk 0:00:13]}  Kd7 {[%clk 0:00:03]} 46. Qh7+ {[%clk 0:00:13]}  Kc8 {[%clk 0:00:03]} 47. Ng6 {[%clk 0:00:09]}  Bd4 {[%clk 0:00:02]} 48. Nf4 {[%clk 0:00:07]}  e3 {[%clk 0:00:03]} 49. fxe3 {[%clk 0:00:07]}  Be5 {[%clk 0:00:03]} 50. Kf3 {[%clk 0:00:08]}  Bb7 {[%clk 0:00:03]} 51. Qe7 {[%clk 0:00:08]}  Kb8 {[%clk 0:00:02]} 52. h4 {[%clk 0:00:08]}  Ba6 {[%clk 0:00:03]} 53. Qe8+ {[%clk 0:00:06]}  Kb7 {[%clk 0:00:03]} 54. Qc6+ {[%clk 0:00:06]}  Ka7 {[%clk 0:00:03]} 55. h5 {[%clk 0:00:07]}  Bb7 {[%clk 0:00:02]} 56. Qc7 {[%clk 0:00:07]}  Ka6 {[%clk 0:00:02]} 57. h6 {[%clk 0:00:07]}  Rxh6 {[%clk 0:00:02]} 58. Ne6 {[%clk 0:00:06]}  Rxe6 {[%clk 0:00:02]} 59. Qxb7+ {[%clk 0:00:02]}  Kxb7 {[%clk 0:00:03]} 60. dxe6 {[%clk 0:00:03]}  Kc7 {[%clk 0:00:03]} 61. g4 {[%clk 0:00:04]}  Kd8 {[%clk 0:00:03]} 62. Ke4 {[%clk 0:00:04]}  Ke7 {[%clk 0:00:04]} 63. Kd5 {[%clk 0:00:05]}  Bg3 {[%clk 0:00:04]} 64. e4 {[%clk 0:00:05]}  Bh2 {[%clk 0:00:03]} 65. g5 {[%clk 0:00:05]}  Bf4 {[%clk 0:00:03]} 66. g6 {[%clk 0:00:06]}  Bh6 {[%clk 0:00:03]} 67. e5 {[%clk 0:00:05]}  dxe5 {[%clk 0:00:04]} 68. Kxe5 {[%clk 0:00:06]}  Bg7+ {[%clk 0:00:04]} 69. Kd5 {[%clk 0:00:05]}  Bc3 {[%clk 0:00:03]} 70. c5 {[%clk 0:00:05]}  Kf6 {[%clk 0:00:04]} 71. Kd6 {[%clk 0:00:03]}  Bb4 {[%clk 0:00:01]} 72. Kd5 {[%clk 0:00:03]}  Bxc5 {[%clk 0:00:01]} 73. Kxc5 {[%clk 0:00:04]}  Kxe6 {[%clk 0:00:01]} 74. Kc6 {[%clk 0:00:02]}  Kf6 {[%clk 0:00:02]} 75. Kd6 {[%clk 0:00:03]}  Kg7 {[%clk 0:00:02]} 76. Ke6 {[%clk 0:00:04]}  Kxg6 {[%clk 0:00:03]} 1/2-1/2

[Event "December 19 Early 2023"]
[Site "https://www.chess.com"]
[Date "2023.12.19"]
[Round "10"]
[White "Arabidze, Meri"]
[Black "Spata, German"]
[Result "1-0"]
[Board "47"]
[TimeControl "180+1"]
[WhiteFideId "13604040"]
[BlackFideId "113026"]
[WhiteElo "2416"]
[BlackElo "2260"]
[WhiteTeam "GEO"]
[BlackTeam "ARG"]
[WhiteClock "0:01:25"]
[BlackClock "0:00:00"]

1. Nf3 {[%clk 0:03:00]}  e6 {[%clk 0:02:25]} 2. c4 {[%clk 0:03:01]}  Nf6 {[%clk 0:02:24]} 3. g3 {[%clk 0:03:02]}  b6 {[%clk 0:02:24]} 4. Bg2 {[%clk 0:03:02]}  Bb7 {[%clk 0:02:25]} 5. O-O {[%clk 0:03:03]}  Be7 {[%clk 0:02:25]} 6. Nc3 {[%clk 0:03:04]}  O-O {[%clk 0:02:25]} 7. Re1 {[%clk 0:03:04]}  d5 {[%clk 0:02:24]} 8. cxd5 {[%clk 0:03:04]}  Nxd5 {[%clk 0:02:24]} 9. Nxd5 {[%clk 0:02:58]}  Bxd5 {[%clk 0:02:24]} 10. e4 {[%clk 0:02:57]}  Bb7 {[%clk 0:02:24]} 11. d4 {[%clk 0:02:57]}  c5 {[%clk 0:02:20]} 12. Bf4 {[%clk 0:02:53]}  cxd4 {[%clk 0:02:09]} 13. Nxd4 {[%clk 0:02:49]}  Nc6 {[%clk 0:02:09]} 14. Nb5 {[%clk 0:02:43]}  e5 {[%clk 0:02:06]} 15. Be3 {[%clk 0:02:41]}  Qxd1 {[%clk 0:01:52]} 16. Rexd1 {[%clk 0:02:37]}  Rfd8 {[%clk 0:01:53]} 17. Nc7 {[%clk 0:02:30]}  Rxd1+ {[%clk 0:01:44]} 18. Rxd1 {[%clk 0:02:31]}  Rd8 {[%clk 0:01:42]} 19. Nd5 {[%clk 0:02:31]}  Kf8 {[%clk 0:01:34]} 20. Rc1 {[%clk 0:02:30]}  Bd6 {[%clk 0:01:28]} 21. a3 {[%clk 0:02:15]}  Ne7 {[%clk 0:01:28]} 22. Nc3 {[%clk 0:02:15]}  Ba6 {[%clk 0:01:12]} 23. h4 {[%clk 0:02:09]}  f6 {[%clk 0:01:11]} 24. Bh3 {[%clk 0:02:07]}  Ke8 {[%clk 0:01:10]} 25. Be6 {[%clk 0:02:05]}  Bc8 {[%clk 0:01:00]} 26. Bb3 {[%clk 0:01:59]}  Ba6 {[%clk 0:00:57]} 27. Kg2 {[%clk 0:01:55]}  Bb7 {[%clk 0:00:53]} 28. f3 {[%clk 0:01:35]}  Bb8 {[%clk 0:00:49]} 29. Kf2 {[%clk 0:01:33]}  Rc8 {[%clk 0:00:41]} 30. Be6 {[%clk 0:01:30]}  Rc6 {[%clk 0:00:35]} 31. Bb3 {[%clk 0:01:26]}  Rc8 {[%clk 0:00:34]} 32. Rd1 {[%clk 0:01:25]}  Rd8 {[%clk 0:00:35]} 33. Bf7+ {[%clk 0:01:24]}  Kxf7 {[%clk 0:00:00]} 34. Rxd8 {[%clk 0:01:25]} 1-0

[Event "December 19 Early 2023"]
[Site "https://www.chess.com"]
[Date "2023.12.19"]
[Round "10"]
[White "Haring, Filip"]
[Black "Martinez Reyes, Pedro Ramon"]
[Result "1-0"]
[Board "48"]
[TimeControl "180+1"]
[WhiteFideId "14933080"]
[BlackFideId "3901807"]
[WhiteElo "2375"]
[BlackElo "2327"]
[WhiteTeam "SVK"]
[BlackTeam "VEN"]
[WhiteClock "0:00:54"]
[BlackClock "0:01:51"]

1. Nf3 {[%clk 0:03:00]}  d6 {[%clk 0:02:55]} 2. d4 {[%clk 0:03:00]}  Nd7 {[%clk 0:02:56]} 3. e4 {[%clk 0:02:59]}  Ngf6 {[%clk 0:02:57]} 4. Nc3 {[%clk 0:02:59]}  e5 {[%clk 0:02:57]} 5. Bc4 {[%clk 0:02:58]}  Be7 {[%clk 0:02:57]} 6. O-O {[%clk 0:02:58]}  O-O {[%clk 0:02:57]} 7. Re1 {[%clk 0:02:59]}  c6 {[%clk 0:02:58]} 8. a4 {[%clk 0:02:58]}  a5 {[%clk 0:02:56]} 9. h3 {[%clk 0:02:58]}  exd4 {[%clk 0:02:56]} 10. Nxd4 {[%clk 0:02:56]}  Nb6 {[%clk 0:02:57]} 11. Bd3 {[%clk 0:02:52]}  Nfd7 {[%clk 0:02:58]} 12. Nf5 {[%clk 0:02:44]}  Nc5 {[%clk 0:02:57]} 13. Nxe7+ {[%clk 0:02:43]}  Qxe7 {[%clk 0:02:58]} 14. Bf4 {[%clk 0:02:38]}  Be6 {[%clk 0:02:58]} 15. Bf1 {[%clk 0:02:35]}  Rad8 {[%clk 0:02:57]} 16. Qh5 {[%clk 0:02:29]}  Bc4 {[%clk 0:02:55]} 17. e5 {[%clk 0:02:09]}  d5 {[%clk 0:02:24]} 18. Bg5 {[%clk 0:02:07]}  Qe6 {[%clk 0:02:21]} 19. Bxd8 {[%clk 0:02:00]}  Rxd8 {[%clk 0:02:22]} 20. Bxc4 {[%clk 0:01:53]}  Nxc4 {[%clk 0:02:21]} 21. b3 {[%clk 0:01:52]}  Nb6 {[%clk 0:02:20]} 22. Rad1 {[%clk 0:01:51]}  Re8 {[%clk 0:02:20]} 23. Ne2 {[%clk 0:01:41]}  g6 {[%clk 0:02:17]} 24. Qh6 {[%clk 0:01:29]}  Qxe5 {[%clk 0:02:17]} 25. Nd4 {[%clk 0:01:16]}  Qxe1+ {[%clk 0:02:16]} 26. Rxe1 {[%clk 0:01:17]}  Rxe1+ {[%clk 0:02:17]} 27. Kh2 {[%clk 0:01:17]}  Re4 {[%clk 0:02:12]} 28. Qd2 {[%clk 0:01:12]}  Nbd7 {[%clk 0:02:10]} 29. f3 {[%clk 0:01:09]}  Re8 {[%clk 0:01:58]} 30. Qxa5 {[%clk 0:01:09]}  Ne6 {[%clk 0:01:59]} 31. Nxe6 {[%clk 0:01:07]}  Rxe6 {[%clk 0:02:00]} 32. Qc7 {[%clk 0:01:03]}  Nc5 {[%clk 0:01:55]} 33. Qb6 {[%clk 0:00:57]}  Nd7 {[%clk 0:01:51]} 34. Qxb7 {[%clk 0:00:57]}  Ne5 {[%clk 0:01:52]} 35. a5 {[%clk 0:00:54]}  d4 {[%clk 0:01:51]} 1-0

[Event "December 19 Early 2023"]
[Site "https://www.chess.com"]
[Date "2023.12.19"]
[Round "10"]
[White "Buksa, Nataliya"]
[Black "Krysa, Leandro"]
[Result "0-1"]
[Board "49"]
[TimeControl "180+1"]
[WhiteFideId "14123622"]
[BlackFideId "116807"]
[WhiteElo "2316"]
[BlackElo "2495"]
[WhiteTeam "UKR"]
[BlackTeam "ARG"]
[WhiteClock "0:00:20"]
[BlackClock "0:00:14"]

1. d4 {[%clk 0:03:00]}  Nf6 {[%clk 0:02:59]} 2. Nc3 {[%clk 0:03:00]}  d5 {[%clk 0:02:58]} 3. Bf4 {[%clk 0:02:59]}  c5 {[%clk 0:02:57]} 4. e3 {[%clk 0:02:59]}  cxd4 {[%clk 0:02:55]} 5. exd4 {[%clk 0:02:58]}  Bg4 {[%clk 0:02:55]} 6. Nf3 {[%clk 0:02:54]}  Nc6 {[%clk 0:02:54]} 7. Bb5 {[%clk 0:02:47]}  e6 {[%clk 0:02:51]} 8. h3 {[%clk 0:02:47]}  Bxf3 {[%clk 0:02:48]} 9. Qxf3 {[%clk 0:02:48]}  Be7 {[%clk 0:02:48]} 10. O-O-O {[%clk 0:02:47]}  O-O {[%clk 0:02:44]} 11. g4 {[%clk 0:02:47]}  Qa5 {[%clk 0:02:41]} 12. g5 {[%clk 0:02:42]}  Nd7 {[%clk 0:02:30]} 13. h4 {[%clk 0:02:39]}  Bb4 {[%clk 0:02:13]} 14. Bxc6 {[%clk 0:02:09]}  bxc6 {[%clk 0:02:10]} 15. a3 {[%clk 0:01:50]}  Bxc3 {[%clk 0:02:00]} 16. Qxc3 {[%clk 0:01:50]}  Qxc3 {[%clk 0:01:56]} 17. bxc3 {[%clk 0:01:51]}  Nb6 {[%clk 0:01:51]} 18. Kb2 {[%clk 0:01:51]}  Nc4+ {[%clk 0:01:44]} 19. Ka2 {[%clk 0:01:51]}  f6 {[%clk 0:01:36]} 20. Bg3 {[%clk 0:01:49]}  e5 {[%clk 0:01:33]} 21. Rb1 {[%clk 0:01:47]}  Rab8 {[%clk 0:01:28]} 22. gxf6 {[%clk 0:01:46]}  gxf6 {[%clk 0:01:27]} 23. Rb3 {[%clk 0:01:45]}  Rb6 {[%clk 0:01:25]} 24. Re1 {[%clk 0:01:34]}  Re8 {[%clk 0:01:21]} 25. Rb4 {[%clk 0:01:18]}  Kf7 {[%clk 0:01:14]} 26. h5 {[%clk 0:01:16]}  exd4 {[%clk 0:00:45]} 27. Rxe8 {[%clk 0:01:04]}  Kxe8 {[%clk 0:00:46]} 28. cxd4 {[%clk 0:01:04]}  Rxb4 {[%clk 0:00:44]} 29. axb4 {[%clk 0:01:05]}  a6 {[%clk 0:00:44]} 30. Kb3 {[%clk 0:01:00]}  Kf7 {[%clk 0:00:43]} 31. Kc3 {[%clk 0:00:59]}  Ke6 {[%clk 0:00:43]} 32. f3 {[%clk 0:00:54]}  Kf5 {[%clk 0:00:41]} 33. Bh4 {[%clk 0:00:54]}  Ne3 {[%clk 0:00:29]} 34. Kb3 {[%clk 0:00:41]}  Nc4 {[%clk 0:00:18]} 35. Kc3 {[%clk 0:00:38]}  h6 {[%clk 0:00:19]} 36. Kd3 {[%clk 0:00:36]}  Nb2+ {[%clk 0:00:17]} 37. Kc3 {[%clk 0:00:36]}  Nc4 {[%clk 0:00:17]} 38. Kd3 {[%clk 0:00:35]}  Nd6 {[%clk 0:00:17]} 39. c3 {[%clk 0:00:24]}  Ne8 {[%clk 0:00:14]} 40. Kc2 {[%clk 0:00:22]}  Ng7 {[%clk 0:00:12]} 41. Kb3 {[%clk 0:00:22]}  Nxh5 {[%clk 0:00:12]} 42. Ka4 {[%clk 0:00:23]}  Ke6 {[%clk 0:00:11]} 43. Ka5 {[%clk 0:00:23]}  Nf4 {[%clk 0:00:11]} 44. Kxa6 {[%clk 0:00:22]}  h5 {[%clk 0:00:10]} 45. Kb6 {[%clk 0:00:20]}  Kd7 {[%clk 0:00:10]} 46. Bxf6 {[%clk 0:00:19]}  Ne2 {[%clk 0:00:09]} 47. b5 {[%clk 0:00:15]}  cxb5 {[%clk 0:00:09]} 48. Kxb5 {[%clk 0:00:16]}  Nxc3+ {[%clk 0:00:09]} 49. Kb4 {[%clk 0:00:16]}  Ne2 {[%clk 0:00:09]} 50. Kc5 {[%clk 0:00:16]}  Ke6 {[%clk 0:00:09]} 51. Bh4 {[%clk 0:00:14]}  Nf4 {[%clk 0:00:09]} 52. Kc6 {[%clk 0:00:10]}  Ng2 {[%clk 0:00:09]} 53. Bg3 {[%clk 0:00:10]}  h4 {[%clk 0:00:09]} 54. Bh2 {[%clk 0:00:10]}  h3 {[%clk 0:00:09]} 55. f4 {[%clk 0:00:10]}  Nh4 {[%clk 0:00:09]} 56. f5+ {[%clk 0:00:10]}  Nxf5 {[%clk 0:00:09]} 57. Kc5 {[%clk 0:00:11]}  Nh4 {[%clk 0:00:09]} 58. Kc6 {[%clk 0:00:11]}  Nf3 {[%clk 0:00:09]} 59. Bg3 {[%clk 0:00:11]}  h2 {[%clk 0:00:10]} 60. Bxh2 {[%clk 0:00:11]}  Nxh2 {[%clk 0:00:10]} 61. Kc5 {[%clk 0:00:12]}  Nf3 {[%clk 0:00:10]} 62. Kb4 {[%clk 0:00:12]}  Nxd4 {[%clk 0:00:11]} 63. Kc3 {[%clk 0:00:13]}  Nf5 {[%clk 0:00:11]} 64. Kd3 {[%clk 0:00:14]}  Ke5 {[%clk 0:00:12]} 65. Ke2 {[%clk 0:00:15]}  Ke4 {[%clk 0:00:12]} 66. Kd2 {[%clk 0:00:15]}  d4 {[%clk 0:00:13]} 67. Ke2 {[%clk 0:00:16]}  d3+ {[%clk 0:00:13]} 68. Kd2 {[%clk 0:00:16]}  Kd4 {[%clk 0:00:14]} 69. Kd1 {[%clk 0:00:17]}  Ke3 {[%clk 0:00:14]} 70. Kc1 {[%clk 0:00:18]}  Ne7 {[%clk 0:00:14]} 71. Kd1 {[%clk 0:00:18]}  d2 {[%clk 0:00:15]} 72. Kc2 {[%clk 0:00:18]}  Ke2 {[%clk 0:00:15]} 73. Kb2 {[%clk 0:00:19]}  d1=Q {[%clk 0:00:16]} 74. Kc3 {[%clk 0:00:20]}  Qd5 {[%clk 0:00:15]} 75. Kb4 {[%clk 0:00:20]}  Qc6 {[%clk 0:00:16]} 76. Kb3 {[%clk 0:00:20]}  Kd3 {[%clk 0:00:15]} 77. Kb2 {[%clk 0:00:21]}  Qb5+ {[%clk 0:00:15]} 78. Ka2 {[%clk 0:00:20]}  Kc3 {[%clk 0:00:14]} 0-1

[Event "December 19 Early 2023"]
[Site "https://www.chess.com"]
[Date "2023.12.19"]
[Round "10"]
[White "Koellner, Ruben Gideon"]
[Black "Asish Panda"]
[Result "0-1"]
[Board "51"]
[TimeControl "180+1"]
[WhiteFideId "12993093"]
[BlackFideId "45012458"]
[WhiteElo "2347"]
[BlackElo "1767"]
[WhiteTeam "GER"]
[BlackTeam "IND"]
[WhiteClock "0:00:00"]
[BlackClock "0:01:20"]

1. d4 {[%clk 0:02:52]}  d5 {[%clk 0:02:59]} 2. Nf3 {[%clk 0:02:51]}  Nf6 {[%clk 0:02:58]} 3. e3 {[%clk 0:02:50]}  e6 {[%clk 0:02:58]} 4. Nbd2 {[%clk 0:02:50]}  Bd6 {[%clk 0:02:59]} 5. Ne5 {[%clk 0:02:50]}  O-O {[%clk 0:02:59]} 6. f4 {[%clk 0:02:50]}  c5 {[%clk 0:02:58]} 7. c3 {[%clk 0:02:51]}  Ne4 {[%clk 0:02:58]} 8. Nxe4 {[%clk 0:02:48]}  dxe4 {[%clk 0:02:59]} 9. Be2 {[%clk 0:02:47]}  cxd4 {[%clk 0:02:56]} 10. Qxd4 {[%clk 0:02:42]}  f5 {[%clk 0:02:51]} 11. O-O {[%clk 0:02:36]}  Bxe5 {[%clk 0:02:51]} 12. Qxe5 {[%clk 0:02:19]}  Nc6 {[%clk 0:02:47]} 13. Qc5 {[%clk 0:02:17]}  Qd5 {[%clk 0:02:44]} 14. Qxd5 {[%clk 0:02:15]}  exd5 {[%clk 0:02:44]} 15. b3 {[%clk 0:02:15]}  Be6 {[%clk 0:02:44]} 16. Bb2 {[%clk 0:02:12]}  Rac8 {[%clk 0:02:43]} 17. Rfd1 {[%clk 0:02:12]}  Rfd8 {[%clk 0:02:43]} 18. Rd2 {[%clk 0:02:11]}  Kf7 {[%clk 0:02:43]} 19. Rad1 {[%clk 0:02:11]}  a6 {[%clk 0:02:42]} 20. Kf2 {[%clk 0:01:43]}  g6 {[%clk 0:02:41]} 21. h3 {[%clk 0:01:37]}  h5 {[%clk 0:02:41]} 22. Kg3 {[%clk 0:01:24]}  Rd7 {[%clk 0:02:34]} 23. c4 {[%clk 0:01:04]}  Rcd8 {[%clk 0:02:23]} 24. c5 {[%clk 0:01:00]}  Rc8 {[%clk 0:02:11]} 25. a3 {[%clk 0:00:40]}  a5 {[%clk 0:02:06]} 26. Bb5 {[%clk 0:00:39]}  Rdc7 {[%clk 0:02:05]} 27. Be5 {[%clk 0:00:39]}  Nxe5 {[%clk 0:02:04]} 28. fxe5 {[%clk 0:00:39]}  Rxc5 {[%clk 0:02:03]} 29. Be2 {[%clk 0:00:33]}  Rc3 {[%clk 0:02:02]} 30. Kf4 {[%clk 0:00:32]}  Rxb3 {[%clk 0:02:00]} 31. Rxd5 {[%clk 0:00:29]}  Bxd5 {[%clk 0:01:56]} 32. Rxd5 {[%clk 0:00:30]}  Rb2 {[%clk 0:01:45]} 33. Bb5 {[%clk 0:00:22]}  Rc7 {[%clk 0:01:40]} 34. Kg3 {[%clk 0:00:03]}  b6 {[%clk 0:01:32]} 35. a4 {[%clk 0:00:02]}  Ke6 {[%clk 0:01:27]} 36. Rd6+ {[%clk 0:00:02]}  Kxe5 {[%clk 0:01:27]} 37. Rxg6 {[%clk 0:00:02]}  Rb3 {[%clk 0:01:23]} 38. Kh4 {[%clk 0:00:00]}  Rxe3 {[%clk 0:01:20]} 0-1